fUST/lending_fUST_20250621
["ID","MTS","AMOUNT","RATE_DAILY","PERIOD"]
[366791650,1750458633169,-460.0,0.00021917,2]
[366791651,1750458633179,-460.0,0.00021917,2]
[366791652,1750458633189,-222.27280839,0.00021917,2]
[366791653,1750458633199,-232.92,0.00022,2]
[366791654,1750458633210,-460.0,0.00022191,2]
[366791655,1750458633221,-460.0,0.00022191,2]
[366791656,1750458633231,-460.0,0.00022191,2]
[366791657,1750458633241,-460.0,0.00022191,2]
[366791658,1750458633253,-460.0,0.00022191,2]
[366791659,1750458633263,-460.0,0.00022191,2]
[366791660,1750458633274,-595.37,0.00022191,2]
[366791661,1750458633283,-460.0,0.00022191,2]
[366791662,1750458633293,-460.0,0.00022191,2]
[366791663,1750458633303,-460.0,0.00022191,2]
[366791664,1750458633313,-235.20302403,0.00022264,2]
[366791665,1750458633323,-299.69823093,0.00022464,2]
[366791666,1750458633333,-570.89439782,0.00022464,2]
[366791667,1750458633344,-460.0,0.00022464,2]
[366791668,1750458633355,-460.0,0.00022464,2]
[366791669,1750458633366,-460.0,0.00022464,2]
[366791670,1750458633376,-917.94,0.00022464,2]
[366791671,1750458633387,-741.23,0.00022464,2]
[366791672,1750458633397,-460.0,0.00022464,2]
[366791673,1750458633407,-460.0,0.00022464,2]
[366791674,1750458633417,-460.0,0.00022464,2]
[366791675,1750458633427,-460.0,0.00022464,2]
[366791676,1750458633437,-460.0,0.00022464,2]
[366791677,1750458633447,-460.0,0.00022464,2]
[366791678,1750458633457,-460.0,0.00022464,2]
[366791679,1750458633467,-460.0,0.00022464,2]
[366791680,1750458633477,-460.0,0.00022465,2]
[366791681,1750458633487,-460.0,0.00022465,2]
[366791682,1750458633496,-285.95,0.00022465,2]
[366791683,1750458633507,-460.0,0.00022465,2]
[366791684,1750458633516,-460.0,0.00022465,2]
[366791685,1750458633526,-595.37,0.00022465,2]
[366791686,1750458633535,-460.0,0.00022465,2]
[366791687,1750458633545,-460.0,0.00022465,2]
[366791688,1750458633555,-460.0,0.00022465,2]
[366791689,1750458633565,-500.0,0.00022574,2]
[366791690,1750458633576,-306.0,0.00022575,2]
[366791691,1750458633586,-307.5017373,0.00022575,2]
[366791692,1750458633596,-5000.0,0.00022576,2]
[366791693,1750458633607,-207.4,0.00022576,2]
[366791694,1750458633617,-500.0,0.00022576,2]
[366791695,1750458633627,-500.0,0.00022576,2]
[366791696,1750458633637,-500.0,0.00022576,2]
[366791697,1750458633648,-500.0,0.00022576,2]
[366791698,1750458633658,-500.0,0.00022576,2]
[366791699,1750458633668,-500.0,0.00022576,2]
[366791700,1750458633678,-500.0,0.00022576,2]
[366791701,1750458633688,-500.0,0.00022576,2]
[366791702,1750458633698,-500.0,0.00022576,2]
[366791703,1750458633708,-500.0,0.00022576,2]
[366791704,1750458633718,-500.0,0.00022576,2]
[366791705,1750458633728,-500.0,0.00022576,2]
[366791706,1750458633741,-500.0,0.00022576,2]
[366791707,1750458633752,-500.0,0.00022576,2]
[366791708,1750458633762,-500.0,0.00022576,2]
[366791709,1750458633773,-160.0,0.0002259,3]
[366791710,1750458633783,-500.0,0.000227,2]
[366791711,1750458633793,-235.20302403,0.0002271,2]
[366791712,1750458633803,-401.27565083,0.00022738,2]
[366791713,1750458633814,-460.0,0.00022738,2]
[366791714,1750458633824,-460.0,0.00022738,2]
[366791715,1750458633835,-156.46,0.00022738,2]
[366791716,1750458633847,-917.94,0.00022738,2]
[366791717,1750458633858,-741.23,0.00022738,2]
[366791718,1750458633868,-460.0,0.00022738,2]
[366791719,1750458633879,-460.0,0.00022738,2]
[366791720,1750458633889,-460.0,0.00022738,2]
[366791721,1750458633899,-454.8,0.00022738,2]
[366791722,1750458633909,-460.0,0.00022738,2]
[366791723,1750458633919,-460.0,0.00022738,2]
[366791724,1750458633930,-151.0,0.00022739,2]
[366791725,1750458633940,-460.0,0.00022739,2]
[366791726,1750458633950,-460.0,0.00022739,2]
[366791727,1750458633960,-460.0,0.00022739,2]
[366791728,1750458633969,-460.0,0.00022739,2]
[366791729,1750458633979,-595.37,0.00022739,2]
[366791730,1750458633989,-460.0,0.00022739,2]
[366791731,1750458633999,-460.0,0.00022739,2]
[366791732,1750458634010,-372.72,0.00022739,2]
[366791733,1750458634019,-151.0,0.00022766,2]
[366791734,1750458634029,-198.0,0.00022794,2]
[366791735,1750458634039,-17343.48643138,0.000228,5]
[366791736,1750458634048,-176.32,0.0002288,10]
[366791737,1750458634058,-253.9,0.0002289,10]
[366791738,1750458634068,-613.50796719,0.000229,8]
[366791739,1750458634077,-794.0,0.00022942,2]
[366791740,1750458634087,-211.59,0.00023002,10]
[366791741,1750458634098,-613.50796714,0.00023003,8]
[366791742,1750458634108,-460.0,0.00023012,2]
[366791743,1750458634118,-917.94,0.00023012,2]
[366791744,1750458634129,-741.23,0.00023012,2]
[366791745,1750458634139,-311.3152221,0.00023012,2]
[366791746,1750458634149,-460.0,0.00023012,2]
[366791747,1750458634159,-460.0,0.00023012,2]
[366791748,1750458634173,-460.0,0.00023012,2]
[366791749,1750458634183,-460.0,0.00023012,2]
[366791750,1750458634193,-460.0,0.00023013,2]
[366791751,1750458634203,-460.0,0.00023013,2]
[366791752,1750458634215,-460.0,0.00023013,2]
[366791753,1750458634225,-460.0,0.00023013,2]
[366791754,1750458634235,-595.37,0.00023013,2]
[366791755,1750458634246,-460.0,0.00023013,2]
[366791756,1750458634255,-460.0,0.00023013,2]
[366791757,1750458634265,-613.50796714,0.00023107,8]
[366791758,1750458634274,-406.0,0.00023128,2]
[366791759,1750458634283,-4685.69,0.00023156,2]
[366791760,1750458634293,-235.20302403,0.00023157,2]
[366791761,1750458634302,-794.0,0.00023178,2]
[366791762,1750458634312,-613.50796714,0.0002321,8]
[366791763,1750458634321,-500.0,0.00023238,2]
[366791764,1750458634331,-794.0,0.00023249,2]
[366791765,1750458634341,-460.0,0.00023286,2]
[366791766,1750458634351,-917.94,0.00023286,2]
[366791767,1750458634362,-741.23,0.00023286,2]
[366791768,1750458634372,-460.0,0.00023286,2]
[366791769,1750458634382,-460.0,0.00023286,2]
[366791770,1750458634392,-460.0,0.00023286,2]
[366791771,1750458634402,-460.0,0.00023286,2]
[366791772,1750458634412,-460.0,0.00023287,2]
[366791773,1750458634421,-433.43372495,0.00023287,2]
[366791774,1750458634432,-460.0,0.00023287,2]
[366791775,1750458634442,-537.38,0.00023287,2]
[366791776,1750458634452,-595.37,0.00023287,2]
[366791777,1750458634462,-460.0,0.00023287,2]
[366791778,1750458634471,-460.0,0.00023287,2]
[366791779,1750458634481,-420.0,0.00023291,2]
[366791780,1750458634491,-7281.74258803,0.000233,2]
[366791781,1750458634500,-1537.62987189,0.00023313,7]
[366791782,1750458634510,-613.50796714,0.00023314,9]
[366791783,1750458634519,-500.0,0.0002335,2]
[366791784,1750458634529,-500.0,0.000234,2]
[366791785,1750458634538,-613.50796714,0.00023417,9]
[366791786,1750458634548,-613.50796714,0.00023521,9]
[366791787,1750458634557,-460.0,0.0002356,2]
[366791788,1750458634566,-917.94,0.0002356,2]
[366791789,1750458634576,-741.23,0.0002356,2]
[366791790,1750458634586,-460.0,0.0002356,2]
[366791791,1750458634595,-460.0,0.0002356,2]
[366791792,1750458634605,-460.0,0.0002356,2]
[366791793,1750458634615,-460.0,0.0002356,2]
[366791794,1750458634624,-460.0,0.00023561,2]
[366791795,1750458634633,-460.0,0.00023561,2]
[366791796,1750458634653,-595.37,0.00023561,2]
[366791797,1750458634665,-460.0,0.00023561,2]
[366791798,1750458634675,-460.0,0.00023561,2]
[366791799,1750458634685,-173.0,0.00023579,2]
[366791800,1750458634695,-235.20302403,0.00023604,2]
[366791801,1750458634705,-173.0,0.00023605,2]
[366791802,1750458634715,-613.50796714,0.00023624,9]
[366791803,1750458634726,-807.299399,0.00023626,4]
[366791804,1750458634735,-794.0,0.00023659,2]
[366791805,1750458634745,-613.50796714,0.00023728,9]
[366791806,1750458634755,-500.0,0.00023737,2]
[366791807,1750458634765,-500.0,0.00023768,2]
[366791808,1750458634775,-21552.26072238,0.00023788,2]
[366791809,1750458634785,-505.08385055,0.00023805,2]
[366791810,1750458634795,-613.50796714,0.00023831,10]
[366791811,1750458634805,-460.0,0.00023834,2]
[366791812,1750458634815,-917.94,0.00023834,2]
[366791813,1750458634825,-741.23,0.00023834,2]
[366791814,1750458634835,-460.0,0.00023834,2]
[366791815,1750458634845,-460.0,0.00023834,2]
[366791816,1750458634855,-460.0,0.00023834,2]
[366791817,1750458634866,-460.0,0.00023834,2]
[366791818,1750458634875,-460.0,0.00023835,2]
[366791819,1750458634885,-460.0,0.00023835,2]
[366791820,1750458634895,-595.37,0.00023835,2]
[366791821,1750458634905,-460.0,0.00023835,2]
[366791822,1750458634916,-460.0,0.00023835,2]
[366791823,1750458634925,-173.0,0.0002386,2]
[366791824,1750458634934,-11654.63312213,0.00023908,2]
[366791836,1750458638369,-460.0,0.00021917,2]
[366791837,1750458638379,-460.0,0.00022191,2]
[366791838,1750458638389,-359.022,0.00022465,2]
[366791839,1750458638402,-100.978,0.00022465,2]
[366791840,1750458638414,-500.0,0.00022574,2]
[366791841,1750458638424,-500.0,0.00022574,2]
[366791842,1750458638434,-500.0,0.00022574,2]
[366791843,1750458638444,-500.0,0.00022574,2]
[366791844,1750458638453,-501.37361476,0.00022574,2]
[366791845,1750458638463,-460.0,0.00022739,2]
[366791846,1750458638473,-460.0,0.00023013,2]
[366791847,1750458638483,-460.0,0.00023287,2]
[366791848,1750458638492,-460.0,0.00023561,2]
[366791849,1750458638502,-460.0,0.00023835,2]
[366791850,1750458638655,-4376.42296387,0.00023908,2]
[366791894,1750458640382,-305.76885228,0.00023908,2]
[366792373,1750458646201,-460.0,0.00021917,2]
[366792375,1750458646211,-460.0,0.00022191,2]
[366792377,1750458646221,-460.0,0.00022465,2]
[366792378,1750458646231,-460.0,0.00022739,2]
[366792381,1750458646241,-460.0,0.00023013,2]
[366792382,1750458646251,-2130.42482898,0.00023908,2]
[366792390,1750458646317,-460.0,0.00023287,2]
[366792392,1750458646326,-2235.00067118,0.00023908,2]
[366794211,1750459221267,163.546015,0.00013699,2]
[366794315,1750459838478,-163.546015,0.00020187,2]
[366794316,1750459838487,-174.57519329,0.00020475,2]
[366794317,1750459838569,-52.78788271,0.00020475,2]
[366794318,1750459838579,-2643.8350304,0.0002059,2]
[366794319,1750459838589,-174.4465411,0.00020821,2]
[366794320,1750459838599,-480.0,0.00021154,2]
[366794321,1750459838608,-213.51557418,0.00021155,2]
[366794322,1750459838617,-160.0,0.00021155,2]
[366794323,1750459838627,-12546.90244252,0.00021155,2]
[366794324,1750459838638,-300.0,0.00021331,2]
[366794325,1750459838649,-300.0,0.00021331,2]
[366794326,1750459838658,-185.227,0.00021332,2]
[366794327,1750459838668,-24900.0,0.00021332,2]
[366794328,1750459838680,-1000.0,0.00021421,2]
[366794329,1750459838690,-163.325418,0.00021779,2]
[366794330,1750459838700,-500.0,0.00021916,2]
[366794331,1750459838710,-600.96153033,0.00021916,2]
[366794332,1750459838720,-500.0,0.00021916,2]
[366794333,1750459838729,-500.0,0.00021916,2]
[366794334,1750459838739,-460.0,0.00021917,2]
[366794335,1750459838750,-380.0,0.00021917,2]
[366794336,1750459838760,-602.72417315,0.00021917,2]
[366794337,1750459838770,-460.0,0.00021917,2]
[366794338,1750459838780,-410.0,0.00021917,2]
[366794339,1750459838790,-460.0,0.00021917,2]
[366794340,1750459838800,-460.0,0.00021917,2]
[366794341,1750459838810,-460.0,0.00021917,2]
[366794342,1750459838820,-460.0,0.00021917,2]
[366794343,1750459838834,-500.64,0.00021917,2]
[366794344,1750459838844,-460.0,0.00021917,2]
[366794345,1750459838853,-460.0,0.00021917,2]
[366794346,1750459838862,-460.0,0.00021917,2]
[366794347,1750459838875,-460.0,0.00021917,2]
[366794348,1750459838885,-427.88930111,0.00021917,2]
[366794349,1750459838894,-460.0,0.00021917,2]
[366794350,1750459838904,-460.0,0.00021917,2]
[366794351,1750459838914,-460.0,0.00021917,2]
[366794352,1750459838924,-460.0,0.00021917,2]
[366794353,1750459838933,-460.0,0.00021917,2]
[366794354,1750459838944,-460.0,0.00021917,2]
[366794355,1750459838957,-460.0,0.00021917,2]
[366794356,1750459838967,-900.04,0.00021917,2]
[366794357,1750459838977,-460.0,0.00021917,2]
[366794358,1750459838986,-460.0,0.00021917,2]
[366794359,1750459838996,-460.0,0.00021917,2]
[366794360,1750459839005,-460.0,0.00021917,2]
[366794361,1750459839015,-460.0,0.00021917,2]
[366794362,1750459839025,-460.0,0.00021917,2]
[366794363,1750459839034,-460.0,0.00021917,2]
[366794364,1750459839044,-460.0,0.00021917,2]
[366794365,1750459839053,-460.0,0.00021917,2]
[366794366,1750459839063,-615.24,0.00021917,2]
[366794367,1750459839072,-460.0,0.00021917,2]
[366794368,1750459839082,-785.11,0.00021917,2]
[366794369,1750459839091,-460.0,0.00021917,2]
[366794370,1750459839102,-460.0,0.00021917,2]
[366794371,1750459839112,-500.0,0.00021917,2]
[366794372,1750459839121,-460.0,0.00021917,2]
[366794373,1750459839130,-460.0,0.00021917,2]
[366794374,1750459839140,-460.0,0.00021917,2]
[366794375,1750459839149,-496.75,0.00021917,2]
[366794376,1750459839159,-460.0,0.00021917,2]
[366794377,1750459839168,-512.58,0.00021917,2]
[366794378,1750459839177,-400.0,0.00021917,2]
[366794379,1750459839187,-460.0,0.00021917,2]
[366794380,1750459839196,-460.0,0.00021917,2]
[366794381,1750459839207,-460.0,0.00021917,2]
[366794382,1750459839217,-460.0,0.00021917,2]
[366794383,1750459839226,-209.63,0.00022,2]
[366794384,1750459839236,-1118.84371756,0.00022,2]
[366794385,1750459839245,-176.0,0.00022,2]
[366794386,1750459839254,-392.88996061,0.00022091,2]
[366794387,1750459839264,-230.06456406,0.0002214,2]
[366794388,1750459839273,-160.0,0.00022143,2]
[366794389,1750459839283,-836.27303475,0.00022143,2]
[366794390,1750459839292,-160.0,0.00022143,2]
[366794391,1750459839302,-424.85694595,0.00022143,2]
[366794392,1750459839311,-460.0,0.00022191,2]
[366794393,1750459839320,-460.0,0.00022191,2]
[366794394,1750459839331,-507.69,0.00022191,2]
[366794395,1750459839340,-460.0,0.00022191,2]
[366794396,1750459839349,-460.0,0.00022191,2]
[366794397,1750459839359,-460.0,0.00022191,2]
[366794398,1750459839368,-567.08031143,0.00022191,2]
[366794399,1750459839378,-485.8,0.00022191,2]
[366794400,1750459839388,-460.0,0.00022191,2]
[366794401,1750459839398,-460.0,0.00022191,2]
[366794402,1750459839407,-460.0,0.00022191,2]
[366794403,1750459839416,-460.0,0.00022191,2]
[366794404,1750459839426,-460.0,0.00022191,2]
[366794405,1750459839435,-900.04,0.00022191,2]
[366794406,1750459839445,-460.0,0.00022191,2]
[366794407,1750459839458,-460.0,0.00022191,2]
[366794408,1750459839468,-460.0,0.00022191,2]
[366794409,1750459839478,-460.0,0.00022191,2]
[366794410,1750459839487,-460.0,0.00022191,2]
[366794411,1750459839496,-460.0,0.00022191,2]
[366794412,1750459839506,-615.24,0.00022191,2]
[366794413,1750459839515,-460.0,0.00022191,2]
[366794414,1750459839526,-785.11,0.00022191,2]
[366794415,1750459839536,-460.0,0.00022191,2]
[366794416,1750459839547,-460.0,0.00022191,2]
[366794417,1750459839556,-500.0,0.00022191,2]
[366794418,1750459839565,-460.0,0.00022191,2]
[366794419,1750459839575,-460.0,0.00022191,2]
[366794420,1750459839585,-460.0,0.00022191,2]
[366794421,1750459839594,-496.75,0.00022191,2]
[366794422,1750459839604,-460.0,0.00022191,2]
[366794423,1750459839613,-512.58,0.00022191,2]
[366794424,1750459839623,-460.0,0.00022191,2]
[366794425,1750459839633,-460.0,0.00022191,2]
[366794426,1750459839643,-460.0,0.00022191,2]
[366794427,1750459839652,-319.0,0.00022272,2]
[366794428,1750459839662,-846.08887863,0.00022397,2]
[366794429,1750459839672,-160.0,0.00022401,2]
[366794430,1750459839681,-881.64,0.00022455,10]
[366794431,1750459839691,-460.0,0.00022464,2]
[366794432,1750459839701,-1129.17,0.00022464,2]
[366794433,1750459839710,-460.0,0.00022464,2]
[366794434,1750459839721,-460.0,0.00022465,2]
[366794435,1750459839731,-460.0,0.00022465,2]
[366794436,1750459839741,-460.0,0.00022465,2]
[366794437,1750459839751,-460.0,0.00022465,2]
[366794438,1750459839761,-460.0,0.00022465,2]
[366794439,1750459839771,-460.0,0.00022465,2]
[366794440,1750459839781,-460.0,0.00022465,2]
[366794441,1750459839792,-460.0,0.00022465,2]
[366794442,1750459839802,-900.04,0.00022465,2]
[366794443,1750459839814,-460.0,0.00022465,2]
[366794444,1750459839823,-460.0,0.00022465,2]
[366794445,1750459839834,-460.0,0.00022465,2]
[366794446,1750459839844,-460.0,0.00022465,2]
[366794447,1750459839854,-460.0,0.00022465,2]
[366794448,1750459839864,-460.0,0.00022465,2]
[366794449,1750459839875,-615.24,0.00022465,2]
[366794450,1750459839885,-460.0,0.00022465,2]
[366794451,1750459839895,-785.11,0.00022465,2]
[366794452,1750459839905,-460.0,0.00022465,2]
[366794453,1750459839915,-500.0,0.00022465,2]
[366794454,1750459839925,-460.0,0.00022465,2]
[366794455,1750459839935,-460.0,0.00022465,2]
[366794457,1750459839946,-460.0,0.00022465,2]
[366794458,1750459839957,-496.75,0.00022465,2]
[366794459,1750459839967,-460.0,0.00022465,2]
[366794460,1750459839977,-512.58,0.00022465,2]
[366794461,1750459839986,-460.0,0.00022465,2]
[366794462,1750459839996,-460.0,0.00022465,2]
[366794463,1750459840006,-460.0,0.00022465,2]
[366794464,1750459840015,-500.0,0.0002248,2]
[366794465,1750459840026,-500.0,0.00022531,2]
[366794466,1750459840036,-500.0,0.00022531,2]
[366794467,1750459840045,-500.0,0.00022531,2]
[366794468,1750459840055,-500.0,0.00022531,2]
[366794469,1750459840065,-5000.0,0.00022576,2]
[366794471,1750459840075,-207.4,0.00022576,2]
[366794473,1750459840085,-3516.11640459,0.00022576,2]
[366794474,1750459840095,-500.0,0.00022576,2]
[366794476,1750459840104,-500.0,0.00022576,2]
[366794477,1750459840114,-500.0,0.00022576,2]
[366794478,1750459840124,-500.0,0.00022576,2]
[366794479,1750459840135,-500.0,0.00022576,2]
[366794480,1750459840145,-500.0,0.00022576,2]
[366794481,1750459840154,-500.0,0.00022576,2]
[366794482,1750459840164,-500.0,0.00022576,2]
[366794483,1750459840175,-500.0,0.00022576,2]
[366794484,1750459840186,-500.0,0.00022576,2]
[366794485,1750459840196,-500.0,0.00022576,2]
[366794486,1750459840208,-500.0,0.00022576,2]
[366794487,1750459840218,-500.0,0.00022576,2]
[366794488,1750459840229,-500.0,0.00022576,2]
[366794489,1750459840239,-500.0,0.00022576,2]
[366794490,1750459840249,-500.0,0.00022576,2]
[366794491,1750459840259,-500.0,0.00022576,2]
[366794492,1750459840270,-500.0,0.00022576,2]
[366794494,1750459840279,-500.0,0.00022576,2]
[366794495,1750459840289,-500.0,0.00022576,2]
[366794496,1750459840299,-500.0,0.0002265,2]
[366794497,1750459840309,-250.0,0.00022686,2]
[366794498,1750459840319,-387.11258371,0.000227,2]
[366794499,1750459840330,-460.0,0.00022738,2]
[366794500,1750459840339,-1129.17,0.00022738,2]
[366794501,1750459840360,-460.0,0.00022738,2]
[366794502,1750459840372,-500.0,0.00022738,2]
[366794504,1750459840383,-293.51,0.00022739,2]
[366794505,1750459840393,-460.0,0.00022739,2]
[366794507,1750459840403,-460.0,0.00022739,2]
[366794508,1750459840415,-460.0,0.00022739,2]
[366794509,1750459840425,-460.0,0.00022739,2]
[366794510,1750459840436,-460.0,0.00022739,2]
[366794511,1750459840445,-460.0,0.00022739,2]
[366794512,1750459840457,-383.02443309,0.00022739,2]
[366794513,1750459840468,-900.04,0.00022739,2]
[366794514,1750459840477,-460.0,0.00022739,2]
[366794515,1750459840488,-460.0,0.00022739,2]
[366794516,1750459840498,-460.0,0.00022739,2]
[366794518,1750459840508,-460.0,0.00022739,2]
[366794520,1750459840517,-460.0,0.00022739,2]
[366794521,1750459840528,-460.0,0.00022739,2]
[366794522,1750459840538,-615.24,0.00022739,2]
[366794523,1750459840548,-460.0,0.00022739,2]
[366794524,1750459840559,-785.11,0.00022739,2]
[366794525,1750459840569,-460.0,0.00022739,2]
[366794526,1750459840579,-504.23576132,0.00022739,2]
[366794527,1750459840589,-460.0,0.00022739,2]
[366794528,1750459840599,-460.0,0.00022739,2]
[366794529,1750459840608,-460.0,0.00022739,2]
[366794530,1750459840618,-496.75,0.00022739,2]
[366794531,1750459840628,-460.0,0.00022739,2]
[366794532,1750459840638,-512.58,0.00022739,2]
[366794533,1750459840648,-460.0,0.00022739,2]
[366794534,1750459840658,-460.0,0.00022739,2]
[366794535,1750459840668,-578.89544865,0.00022739,2]
[366794536,1750459840678,-514.03681153,0.00022773,2]
[366794537,1750459840687,-502.07433264,0.00022773,2]
[366794538,1750459840697,-500.09465065,0.00022773,2]
[366794539,1750459840707,-500.24466392,0.00022773,2]
[366794540,1750459840717,-502.10807726,0.00022773,2]
[366794541,1750459840726,-501.53825745,0.00022773,2]
[366794542,1750459840736,-506.04918897,0.00022773,2]
[366794543,1750459840747,-500.0,0.00022773,2]
[366794544,1750459840757,-502.21431889,0.00022773,2]
[366794545,1750459840767,-632.45498733,0.000228,2]
[366794546,1750459840777,-1035.3114026,0.000228,2]
[366794547,1750459840787,-663754.76921711,0.000228,2]
[366794563,1750459843505,-41725.05768008,0.000228,2]
[366794569,1750459846523,-302.0,0.00021917,2]
[366794570,1750459846536,-158.0,0.00021917,2]
[366794571,1750459846546,-460.0,0.00021917,2]
[366794572,1750459846556,-460.0,0.00022191,2]
[366794573,1750459846565,-460.0,0.00022191,2]
[366794574,1750459846575,-460.0,0.00022465,2]
[366794575,1750459846585,-162.0,0.00022465,2]
[366794576,1750459960331,1001.0,0.00024657,120]
[366794585,1750460645016,163.546015,0.00013699,2]
[366794619,1750461032720,-227.3630767,0.00020889,2]
[366794621,1750461032730,-193.858,0.00020924,2]
[366794623,1750461032739,-300.0,0.00020924,2]
[366794625,1750461032749,-178.9360786,0.00020924,2]
[366794668,1750461038790,-121.0639214,0.00020924,2]
[366794669,1750461038800,-563.77610023,0.00020925,2]
[366797036,1750461213832,200.0,0.00022441,30]
[366797037,1750461214243,200.0,0.00022715,30]
[366797038,1750461214385,200.0,0.00022989,30]
[366797044,1750461846708,163.546015,0.00013699,2]
[366797118,1750462231927,-411.751788,0.00020301,2]
[366797120,1750462231938,-163.325418,0.00020578,2]
[366797122,1750462231948,-411.751788,0.00020606,2]
[366797124,1750462231958,-300.0,0.00020718,2]
[366797127,1750462231970,-300.0,0.00020718,2]
[366797128,1750462231980,-316.22749367,0.00020719,2]
[366797131,1750462231991,-517.6557013,0.00020719,2]
[366797133,1750462232002,-4823.49278942,0.00020719,2]
[366797135,1750462232014,-298.25819252,0.00020719,2]
[366797137,1750462232027,-19778.24901806,0.00020719,2]
[366797139,1750462232037,-190.25654933,0.00020999,2]
[366797141,1750462232047,-500.0,0.00020999,2]
[366797143,1750462232058,-500.0,0.00020999,2]
[366797145,1750462232067,-500.0,0.00020999,2]
[366797147,1750462232078,-1890.63060388,0.00021,2]
[366797217,1750462237803,-457.85716984,0.00020999,2]
[366797218,1750462237812,-930.50950962,0.00021,2]
[366797219,1750462237824,-903.79142079,0.00021,2]
[366797248,1750462239967,-281.052355,0.00021,2]
[366797512,1750462242889,-2848.50966926,0.00021,2]
[366797766,1750462245780,-20299.65508651,0.00021,2]
[366797768,1750462245791,-298.4608161,0.00021087,2]
[366797770,1750462245800,-243.69860283,0.00021192,2]
[366797772,1750462245810,-160.0,0.00021233,2]
[366797774,1750462245819,-160.0,0.00021233,2]
[366797776,1750462245830,-160.0,0.00021233,2]
[366797778,1750462245839,-180.3962487,0.000213,2]
[366797780,1750462245849,-163.546015,0.00021404,2]
[366797782,1750462245859,-836.27303475,0.00021846,2]
[366797784,1750462245869,-424.85694595,0.00021846,2]
[366797786,1750462245878,-160.0,0.00021846,2]
[366797789,1750462245889,-230.06456406,0.00021846,2]
[366797792,1750462245898,-846.08887863,0.00021848,2]
[366797795,1750462245908,-155.086,0.00021856,2]
[366797798,1750462245918,-3000.0,0.000219,2]
[366797800,1750462245927,-185.1521327,0.000219,2]
[366797802,1750462245937,-458.5144014,0.000219,2]
[366797804,1750462245946,-242.5939842,0.000219,2]
[366797806,1750462245956,-1740.63291258,0.000219,6]
[366797808,1750462245965,-3000.0,0.0002191,2]
[366797809,1750462245974,-641.22689145,0.0002191,2]
[366797811,1750462245985,-460.0,0.00021917,2]
[366797813,1750462245994,-430.0,0.00021917,2]
[366797815,1750462246003,-460.0,0.00021917,2]
[366797817,1750462246013,-500.0,0.00021917,2]
[366797819,1750462246023,-500.0,0.00021917,2]
[366797820,1750462246033,-460.0,0.00021917,2]
[366797822,1750462246043,-460.0,0.00021917,2]
[366797824,1750462246052,-586.99154412,0.00021917,2]
[366797826,1750462246062,-460.0,0.00021917,2]
[366797828,1750462246071,-460.0,0.00021917,2]
[366797830,1750462246080,-460.0,0.00021917,2]
[366797832,1750462246091,-460.0,0.00021917,2]
[366797834,1750462246101,-460.0,0.00021917,2]
[366797836,1750462246113,-460.0,0.00021917,2]
[366797838,1750462246122,-460.0,0.00021917,2]